[Event "BL 2017-18"]
[Site "Germany"]
[Date "2018.03.11"]
[Round "12"]
[White "Zpevak, Pavel"]
[Black "Bohnsack, Ralf"]
[Result "1/2-1/2"]
[ECO "A38"]
[WhiteElo "2337"]
[BlackElo "2149"]
[Annotator "NA"]
[PlyCount "48"]
[EventDate "2018.05.24"]
[EventType "team-tourn"]
[EventCountry "GER"]
[SourceTitle "playchess.com"]
[Source "ChessBase"]
[SourceQuality "1"]
[WhiteTeam "Schwaebisch Hall"]
[BlackTeam "Norderstedt"]
[TimeControl "40/6000+30:3000+30"]

1. Nf3 c5 2. g3 Nc6 3. Bg2 g6 4. c4 Bg7 5. Nc3 Nf6 6. O-O O-O 7. d3 d6 8. a3 Bd7 9. Rb1 a5 10. Bd2 Ne8 11. Ne1 Nc7 12. Nc2 Rb8 13. b4 axb4 14. axb4 Nxb4 15. Nxb4 cxb4 16. Rxb4 b5 17. cxb5 {A38: Symmetrical English vs ...g6: 4 Bg2 Bg7 5 Nf3 Nf6} Nxb5 18. Nxb5 Rxb5 19. Rxb5 Bxb5 20. Qb3 Qd7 (20... Bd7 21. Qb7 Qc8 22. Qa7 Rd8 23. Bg5 Bf6 24. Bxf6 exf6 {1-0 (89) Kovalenko,I (2684)-Borisek,J (2565) chess.com INT 2017}) 21. Bg5 $146 ({Predecessor:} 21. Rc1 Ba4 22. Qb4 Qb5 23. Qxb5 Bxb5 24. Bg5 Re8 25. Rb1 Ba4 26. Rb4 Bd7 27. Rb7 Bg4 28. Rxe7 {½-½ (28) Berescu,A (2461)-Parligras,M (2565) Albena 2013}) 21... h6 22. Be3 Rc8 23. Rc1 $11 Rxc1+ 24. Bxc1 Bc6 1/2-1/2

[Event "BL 2017-18"]
[Site "Germany"]
[Date "2018.04.30"]
[Round "14"]
[White "Buckels, Valentin"]
[Black "Grigorian, Spartak"]
[Result "0-1"]
[ECO "E04"]
[WhiteElo "2335"]
[BlackElo "2321"]
[Annotator "NA"]
[PlyCount "70"]
[EventDate "2018.05.24"]
[EventType "team-tourn"]
[EventCountry "GER"]
[SourceTitle "playchess.com"]
[Source "ChessBase"]
[SourceQuality "1"]
[WhiteTeam "Muelheim"]
[BlackTeam "Werder Bremen"]
[TimeControl "40/6000+30:3000+30"]

1. d4 {[%emt 0:00:00]} Nf6 {[%emt 0:00:02]} 2. c4 {[%emt 0:00:00]} e6 {[%emt 0:00:04]} 3. Nf3 {[%emt 0:00:00]} d5 {[%emt 0:00:03]} 4. g3 {[%emt 0:00:00]} dxc4 {[%emt 0:00:07] LiveBook: 6330 Games} 5. Bg2 {[%emt 0:00:00]} a6 {[%emt 0:00:19]} 6. O-O {[%emt 0:00:22]} Nc6 {[%emt 0:00:09]} 7. e3 {[%emt 0:01:05]} Rb8 {[%emt 0:00:07]} 8. Nfd2 {[%emt 0:13:37]} e5 {[%emt 0:00:25]} 9. Bxc6+ {[%emt 0:12:42]} bxc6 {[%emt 0:00:05]} 10. dxe5 {[%emt 0:03:05]} Ng4 {[%emt 0:00:04]} 11. Nxc4 {[%emt 0:01:31]} Be6 {[%emt 0:01:28]} 12. Qc2 {[%emt 0:10:17]} Rb4 {[%emt 0:38:05]} 13. Nbd2 {[%emt 0:06:18]} h5 $14 {[%emt 0:10:14]} 14. f3 {[%emt 0:08:51]} h4 {[%emt 0:02:16]} 15. fxg4 {[%emt 0:32:03]} hxg3 {[%emt 0:00:02]} 16. hxg3 {[%emt 0:01:01]} Bxc4 {[%emt 0:05:54]} 17. Nxc4 {[%emt 0:00:18]} Qd5 {[%emt 0:00:13]} 18. Nd2 {[%emt 0:05:20]} Rxg4 {[%emt 0:05:57]} 19. Qf5 {[%emt 0:06:15]} Rxg3+ {[%emt 0:16:04]} 20. Kf2 {[%emt 0:00:01]} Rh2+ {[%emt 0:05:39]} 21. Ke1 {[%emt 0:00:01]} Kd8 {[%emt 0:03:22]} 22. Qe4 {[%emt 0:05:45]} Rxd2 {[%emt 0:01:24]} 23. Qh4+ {[%emt 0:00:11]} g5 {[%emt 0:02:29]} 24. Qxg3 {[%emt 0:00:09]} Rg2 {[%emt 0:02:30]} 25. Qxg2 {[%emt 0:00:25]} Qxg2 {[%emt 0:00:03]} 26. Bd2 {[%emt 0:00:50]} g4 {[%emt 0:01:01]} 27. Rf2 {[%emt 0:02:01]} Qh3 {[%emt 0:01:48]} 28. Ke2 {[%emt 0:01:04]} g3 {[%emt 0:00:05]} 29. Rf4 {[%emt 0:00:30]} Bh6 {[%emt 0:03:21]} 30. Rd4+ {[%emt 0:00:15]} Kc8 {[%emt 0:00:09]} 31. Be1 {[%emt 0:00:55]} Bxe3 {[%emt 0:05:58]} 32. Rd3 {[%emt 0:00:31]} Bf4 {[%emt 0:01:44]} 33. Rf3 {[%emt 0:00:36]} Qg2+ {[%emt 0:00:54]} 34. Bf2 {[%emt 0:00:12]} gxf2 {[%emt 0:00:13]} 35. Rf1 {[%emt 0:00:23]} Bg3 {[%emt 0:01:26]} 0-1